bitfinex/quotes_ETHUSD_20260213
["timestamp","ask_amount","ask_price","bid_price","bid_amount"]
[1770946838034,0.002,1951.8,1951.3,2.68414625]
[1770946838618,0.002,1951.8,1951.3,3.60012665]
[1770946839547,0.002,1951.8,1951.3,2.68414625]
[1770946840730,0.96642658,1951.8,1951.1,0.001]
[1770946840930,0.96642658,1951.8,1951.2,1.404]
[1770946842438,2.24734368,1951.8,1951.2,1.404]
[1770946842618,2.23069579,1951.8,1951.2,1.404]
[1770946844222,0.96442658,1951.7,1951.2,1.404]
[1770946844623,2.24542448,1951.7,1951.2,1.404]
[1770946845238,0.96442658,1951.7,1951.2,2.68525445]
[1770946845420,0.16151961,1951.9,1951.3,0.9159804]
[1770946846723,0.16151961,1951.9,1951.4,1.28113149]
[1770946847023,0.16151961,1951.9,1951.3,2.19712509]
[1770946847548,0.16151961,1951.9,1951.3,1.28114469]
[1770946848548,1.44234059,1951.9,1951.3,1.28114469]
[1770946848728,1.44234059,1951.9,1951.2,2.68522162]
[1770946848933,2.40676717,1951.9,1951.2,2.68522162]
[1770946849334,0.96442658,1951.8,1951.1,0.001]
[1770946849533,0.96442658,1951.8,1951.2,1.404]
[1770946850832,1.28093456,1951.7,1951.2,1.404]
[1770946852550,2.2602799,1951.7,1951.2,1.404]
[1770946852759,5.12559172,1951.8,1951.2,1.404]
[1770946852962,0.97934534,1951.7,1951.2,1.404]
[1770946854653,5.12559172,1951.8,1951.2,1.404]
[1770946854832,1.28286894,1951.8,1951.2,1.404]
[1770946855034,1.28286894,1951.8,1951.2,2.68525383]
[1770946855637,1.28286894,1951.8,1951.2,1.404]
[1770946856360,2.26221428,1951.8,1951.2,1.404]
[1770946856878,1.2810002,1951.6,1951.2,1.404]
[1770946857374,0.002,1951.8,1951.2,2.6852464]
[1770946858753,0.002,1951.8,1951.2,3.62078126]
[1770946859130,0.002,1951.8,1951.3,0.93553486]
[1770946861056,0.002,1951.8,1951.4,2.22895727]
[1770946862337,0.114933,1951.9,1951.5,0.94782578]
[1770946862541,0.24348046,1952.5,1951.7,0.94782578]
[1770946863055,0.24348046,1952.5,1951.8,2.22869472]
[1770946863681,0.002,1952.4,1951.7,1.2808881]
[1770946863968,0.002,1952.4,1951.8,0.94782578]
[1770946864469,0.24348046,1952.5,1951.8,0.94782578]
[1770946864649,0.24348046,1952.5,1951.9,1.405]
[1770946865368,2.51864449,1952.5,1951.9,1.405]
[1770946865575,0.9947476,1952.4,1951.9,1.404]
[1770946865872,0.9947476,1952.4,1951.6,0.924]
[1770946866054,0.9947476,1952.4,1951.3,1.28217923]
[1770946866237,0.9947476,1952.4,1951.4,1.404]
[1770946867268,0.9947476,1952.2,1951.4,2.68513099]
[1770946868171,0.9947476,1952.2,1951.4,1.404]
[1770946868542,0.9947476,1952.2,1951.3,0.001]
[1770946869169,1.28067209,1952.1,1951.3,0.001]
[1770946869342,0.9947476,1952.0,1951.3,0.001]
[1770946870774,1.28067209,1952.1,1951.3,0.001]
[1770946872250,2.27541969,1952.1,1951.3,0.001]
[1770946872456,0.9947476,1952.0,1951.3,0.001]
[1770946872868,1.28067209,1952.1,1951.3,0.001]
[1770946873382,5.12268838,1952.2,1951.4,1.28113149]
[1770946875284,6.11743598,1952.2,1951.4,1.28113149]
[1770946875780,0.9947476,1952.1,1951.3,1.28214528]
[1770946876350,0.9947476,1952.1,1951.3,0.001]
[1770946876549,0.9947476,1952.1,1951.5,0.001]
[1770946877597,0.9947476,1951.9,1951.5,0.001]
[1770946878853,1.2807377,1952.0,1951.5,0.001]
[1770946879051,1.28067061,1952.2,1951.5,0.001]
[1770946879650,0.9947476,1952.1,1951.5,0.001]
[1770946880099,0.9947476,1951.9,1951.5,0.001]
[1770946881256,0.9947476,1951.9,1951.0,0.001]
[1770946881257,0.9947476,1951.8,1951.0,0.001]
[1770946882174,0.9947476,1951.6,1951.0,0.001]
[1770946882373,0.9947476,1951.6,1950.9,0.001]
[1770946882374,0.9947476,1951.5,1950.9,0.001]
[1770946883162,0.9947476,1951.5,1950.7,0.001]
[1770946884271,0.9947476,1951.2,1950.7,0.001]
[1770946886293,2.52019715,1951.3,1950.7,0.001]
[1770946886493,1.28119715,1951.3,1950.7,0.001]
[1770946886991,0.9947476,1951.2,1950.7,0.001]
[1770946887991,1.28119715,1951.3,1950.7,0.001]
[1770946889062,0.9947476,1951.2,1950.7,0.001]
[1770946890392,2.26425601,1951.1,1950.7,0.001]
[1770946890691,0.98292753,1951.0,1950.4,0.001]
[1770946891898,1.28132848,1951.1,1950.4,0.001]
[1770946892598,0.98292753,1951.1,1950.4,0.001]
[1770946893902,5.12531392,1951.3,1950.4,0.97362582]
[1770946894064,1.28113149,1951.4,1950.4,0.97362582]
[1770946894690,1.28113149,1951.4,1950.5,1.28172263]
[1770946894888,1.28113149,1951.4,1950.5,2.25434845]
[1770946895464,1.28113149,1951.4,1950.6,0.97262582]
[1770946896577,2.52509955,1951.5,1950.6,0.97262582]
[1770946896776,1.28103079,1951.6,1950.9,0.97262582]
[1770946897294,1.28298234,1951.7,1950.9,0.97262582]
[1770946897476,2.28088838,1951.7,1950.8,1.28152552]
[1770946897672,2.28088838,1951.7,1950.7,3.17816448]
[1770946897868,0.99790604,1951.6,1950.7,2.66853866]
[1770946898466,0.99790604,1951.6,1950.7,1.387]
[1770946898968,2.27897188,1951.5,1950.7,2.66859047]
[1770946899266,0.99790604,1951.4,1950.7,1.387]
[1770946899869,1.28106584,1951.5,1950.7,2.66858915]
[1770946902913,1.28106584,1951.5,1950.7,2.66958915]
[1770946903210,0.002,1951.4,1950.7,2.66958915]
[1770946903412,0.002,1951.4,1950.7,1.388]
[1770946903607,0.99990604,1951.4,1950.7,1.388]
[1770946905406,0.99790604,1951.2,1950.7,0.001]
[1770946906010,1.28119715,1951.3,1950.7,0.001]
[1770946906695,2.27910319,1951.3,1950.7,0.001]
[1770946907213,1.28119715,1951.3,1950.7,1.28258987]
[1770946907611,1.28318058,1951.4,1950.7,0.001]
[1770946908515,1.28314004,1951.4,1950.7,0.001]
[1770946910408,1.28314004,1951.4,1950.7,1.28259122]
[1770946910612,1.28314004,1951.4,1950.7,2.25521704]
[1770946912317,1.28314004,1951.4,1950.7,0.97362582]
[1770946912520,0.99790604,1951.3,1950.7,0.001]
[1770946914403,1.28126281,1951.2,1950.7,0.001]
[1770946914719,2.27916885,1951.2,1950.7,0.001]
[1770946914925,0.99790604,1951.1,1950.7,0.001]
[1770946915918,1.28126281,1951.2,1950.7,0.001]
[1770946916420,1.28126281,1951.2,1950.8,0.001]
[1770946918002,2.52623892,1951.3,1950.8,0.001]
[1770946918818,0.002,1951.3,1950.8,0.001]
[1770946919518,1.28320853,1951.3,1950.8,0.001]
[1770946921122,0.91021372,1951.2,1950.6,1.378]
[1770946921794,0.91021372,1951.1,1950.5,0.001]
[1770946922504,0.91021372,1951.1,1950.3,0.001]
[1770946922694,0.91021372,1950.9,1950.3,0.001]
[1770946924197,1.28139415,1951.0,1950.3,0.001]
[1770946925118,1.28139415,1951.0,1950.3,0.9181772]
[1770946925499,1.248,1951.2,1950.3,0.9181772]
[1770946925800,1.28323644,1951.3,1950.3,0.9181772]
[1770946927033,0.002,1951.3,1950.5,0.9171772]
[1770946927231,0.002,1951.3,1950.6,0.9171772]
[1770946929111,0.002,1951.3,1950.6,2.19881362]
[1770946929308,0.002,1951.3,1950.5,2.65666956]
[1770946929535,0.002,1951.3,1950.5,3.57384676]
[1770946933134,0.91221372,1951.3,1950.5,3.57384676]
[1770946933735,0.91221372,1951.3,1950.4,0.001]
[1770946934334,0.91021372,1951.1,1950.4,0.001]
[1770946934514,0.91021372,1951.1,1950.4,1.28277801]
[1770946934700,2.15821372,1951.3,1950.4,2.19995521]
[1770946934903,0.002,1951.3,1950.7,0.9171772]
[1770946937237,0.002,1951.3,1950.7,2.19872057]
[1770946938636,0.002,1951.3,1950.8,0.9171772]
[1770946938935,0.002,1951.3,1950.9,2.2901772]
[1770946939506,0.002,1951.3,1950.4,0.001]
[1770946939835,0.002,1951.3,1950.6,0.9171772]
[1770946940408,2.19319478,1951.7,1950.8,0.9171772]
[1770946940409,0.002,1951.7,1950.8,0.9171772]
[1770946940711,0.002,1952.2,1951.2,0.9171772]
[1770946941008,0.002,1952.1,1951.4,0.9171772]
[1770946941707,0.002,1952.1,1951.6,0.9171772]
[1770946941929,0.002,1952.1,1951.8,0.9171772]
[1770946942129,0.002,1952.1,1951.9,1.372]
[1770946942837,0.002,1952.1,1951.5,1.28106584]
[1770946943006,0.002,1952.1,1951.6,1.372]
[1770946943413,0.002,1952.1,1951.4,1.28108326]
[1770946943608,0.002,1952.1,1951.4,2.65308326]
[1770946943816,2.19288581,1952.1,1951.4,1.372]
[1770946945341,0.91021372,1952.0,1951.4,1.372]
[1770946946238,2.19101703,1951.9,1951.1,1.371]
[1770946947013,1.2807815,1952.0,1951.1,2.2881772]
[1770946948240,0.91021372,1952.0,1951.2,1.28126281]
[1770946948767,0.91021372,1952.0,1951.1,2.65227644]
[1770946948946,0.91021372,1952.0,1951.1,1.371]
[1770946949545,0.002,1952.1,1951.2,0.9171772]
[1770946951654,0.96795245,1951.9,1951.1,2.6523275]
[1770946951967,0.96795245,1951.9,1951.1,1.371]
[1770946952168,0.96795245,1951.9,1950.9,1.368]
[1770946952470,0.96795245,1951.7,1950.9,1.368]
[1770946952837,0.96795245,1951.7,1951.2,0.001]
[1770946953365,1.28085314,1951.9,1951.2,0.001]
[1770946954351,6.10887078,1952.0,1951.3,1.28119715]
[1770946954352,0.002,1952.0,1951.3,1.28119715]
[1770946954928,0.002,1952.0,1951.3,2.2689812]
[1770946955726,0.002,1952.0,1951.3,1.28119715]
[1770946955959,0.002,1952.0,1951.4,1.367]
[1770946956157,0.98576429,1952.0,1951.4,1.367]
[1770946956533,0.002,1952.0,1951.4,1.367]
[1770946956734,0.002,1952.0,1951.4,2.64812269]
[1770946956934,1.28274942,1952.0,1951.4,2.64812269]
[1770946957335,1.28274942,1952.0,1951.4,1.367]
[1770946957536,1.28274942,1952.0,1951.4,2.64811446]
[1770946958139,0.002,1952.0,1951.4,2.64811446]
[1770946960975,0.002,1952.0,1951.5,0.98778405]
[1770946961184,1e-08,1952.2,1951.5,0.98778405]
[1770946962936,1e-08,1952.2,1951.9,0.98778405]
[1770946963136,1e-08,1952.5,1952.1,0.98778405]
[1770946965037,1e-08,1952.5,1952.2,1.28060649]
[1770946965369,0.002,1952.4,1952.0,1.28068429]
[1770946965666,0.002,1952.4,1952.0,1.368]
[1770946966251,0.002,1952.4,1952.0,2.35578405]
[1770946966451,0.002,1952.4,1952.0,1.368]
[1770946967851,0.002,1952.4,1952.0,2.64872473]
[1770946968446,0.002,1952.4,1952.0,1.368]
[1770946968871,0.98576429,1952.4,1952.0,1.13909465]
[1770946969092,1.2805409,1952.3,1951.7,0.924]
[1770946969276,0.98376429,1952.2,1951.7,0.924]
[1770946971287,0.98376429,1952.2,1951.7,2.20492638]
[1770946971474,2.26628378,1952.4,1951.7,2.20492638]
[1770946972348,2.26628378,1952.4,1951.7,0.924]
[1770946973984,0.98376429,1952.3,1951.7,0.924]
[1770946975375,0.98376429,1952.3,1951.6,1.369]
[1770946975558,1.28060649,1952.2,1951.6,1.369]
[1770946975889,0.98376429,1952.1,1951.6,1.369]
[1770946978282,0.98376429,1951.9,1951.4,0.001]
[1770946978658,0.98376429,1951.9,1951.2,0.001]
[1770946980080,0.98376429,1951.7,1951.2,0.001]
[1770946980264,1.28106584,1951.5,1951.2,0.001]
[1770946980465,0.97629875,1951.4,1951.2,0.001]
[1770946981098,1.28106584,1951.5,1951.2,0.001]
[1770946981589,2.25736459,1951.5,1951.2,0.001]
[1770946982868,2.25728437,1951.7,1951.2,0.001]
[1770946983066,1.28090971,1951.8,1951.2,0.001]
[1770946983285,2.2571469,1951.9,1951.2,0.001]
[1770946984100,0.97629875,1951.8,1951.2,0.001]
[1770946984301,2.25721971,1951.8,1951.2,0.001]
[1770946984466,1.28078394,1952.0,1951.2,0.96618655]
[1770946985585,0.97629875,1951.9,1951.2,0.001]
[1770946986602,1.28086894,1951.8,1951.2,1.28226281]
[1770946986790,1.27821259,1951.8,1951.2,1.28226281]
[1770946987990,0.97629875,1951.7,1951.2,0.001]
[1770946988405,0.97629875,1951.6,1951.2,0.001]
[1770946988574,2.25736459,1951.5,1951.2,0.001]
[1770946988901,0.97629875,1951.4,1951.2,0.001]
[1770946989876,0.97629875,1951.2,1950.9,0.001]
[1770946990098,0.97629875,1951.2,1950.6,0.925]
[1770946990293,1.239,1951.3,1950.6,2.20664591]
[1770946990686,2.25756156,1951.2,1950.6,0.925]
[1770946992106,0.97629875,1951.1,1950.6,0.925]
[1770946992279,1.28126281,1951.2,1950.6,0.925]
[1770946992481,1.28126281,1951.2,1950.7,0.001]
[1770946995779,2.52024,1951.3,1950.7,0.001]
[1770946996505,0.97629875,1951.2,1950.7,0.001]
[1770946997988,1.28132848,1951.1,1950.7,0.001]
[1770946998207,0.97629875,1951.0,1950.7,0.001]
[1770947000084,1.28145983,1950.9,1950.7,0.001]
[1770947000815,2.25775858,1950.9,1950.7,0.001]
[1770947001110,0.97629875,1950.8,1950.5,0.001]
[1770947002414,1.28145983,1950.9,1950.5,0.001]
[1770947003716,2.25775858,1950.9,1950.5,0.001]
[1770947004022,0.97629875,1950.8,1950.5,0.001]
[1770947004589,0.97629875,1950.8,1950.6,0.001]
[1770947004590,2.25788997,1950.7,1950.6,0.001]
[1770947004798,2.25788997,1950.7,1950.4,0.001]
[1770947004799,2.25988997,1950.7,1950.4,0.001]
[1770947005807,3.51188997,1950.7,1950.4,0.001]
[1770947006225,3.51188997,1950.7,1950.3,0.001]
[1770947006432,2.53559122,1950.7,1950.3,0.001]
[1770947008338,3.51188997,1950.7,1950.3,0.001]
[1770947008632,0.97629875,1950.6,1950.3,0.001]
[1770947011405,1.28172263,1950.5,1950.3,0.001]
[1770947011607,1.28361898,1950.7,1950.3,0.001]
[1770947012508,5.12823827,1950.8,1950.3,0.9283605]
[1770947012509,0.002,1950.8,1950.3,0.9283605]
[1770947012747,1.28129034,1951.2,1950.4,0.9273605]
[1770947012969,1.28329034,1951.2,1950.4,0.9273605]
[1770947013650,0.002,1951.1,1950.5,1.28172263]
[1770947014241,2.54124809,1951.3,1950.6,0.98917771]
[1770947014441,0.002,1951.2,1950.6,0.98917771]
[1770947015774,0.002,1951.2,1950.4,6.11618731]
[1770947015976,0.002,1951.1,1950.4,6.11618731]
[1770947016183,0.002,1951.1,1950.5,0.98917771]
[1770947016688,3.52194227,1951.3,1950.5,0.98917771]
[1770947017000,0.002,1951.2,1950.5,0.98917771]
[1770947017293,0.002,1951.1,1950.5,0.99017771]
[1770947017807,0.002,1951.1,1950.7,0.98917771]
[1770947019485,0.002,1951.1,1950.9,0.98917771]
[1770947019861,0.002,1951.1,1951.0,1.28139415]
[1770947021088,0.002,1951.1,1950.8,1.28148367]
[1770947021089,0.004,1951.1,1950.8,1.28148367]
[1770947021400,0.004,1951.1,1950.8,2.63248367]
[1770947021960,0.002,1951.0,1950.8,1.351]
[1770947023359,0.002,1951.0,1950.5,0.001]
[1770947023565,0.002,1951.0,1950.5,1.353]
[1770947023916,0.002,1951.0,1950.5,2.63471859]
[1770947024091,0.002,1951.0,1950.6,0.98917771]
[1770947024392,0.002,1951.0,1950.5,2.63471859]
[1770947024590,0.002,1951.0,1950.5,2.63471484]
[1770947026081,0.002,1951.0,1950.5,1.353]
[1770947026282,0.98269418,1951.0,1950.5,1.353]
[1770947027369,0.98069418,1951.0,1950.5,1.353]
[1770947027722,0.98069418,1951.0,1950.5,0.001]
[1770947028173,0.98069418,1950.8,1950.5,0.001]
[1770947029101,0.002,1950.7,1950.5,0.001]
[1770947029911,0.002,1950.7,1950.6,0.001]
[1770947030207,2.2622854,1950.7,1950.4,0.001]
[1770947030918,0.98069418,1950.6,1950.4,0.001]
[1770947031268,2.26226969,1950.8,1950.4,0.001]
[1770947033916,3.52013943,1951.0,1950.4,0.001]
[1770947035211,2.26413943,1951.0,1950.4,0.001]
[1770947035914,0.98069418,1950.9,1950.4,0.001]
[1770947036286,1.28152552,1950.8,1950.4,0.001]
[1770947037302,1.28149839,1950.9,1950.4,0.001]
[1770947037884,2.26219257,1950.9,1950.4,0.001]
[1770947038202,0.98069418,1950.8,1950.4,0.001]
[1770947038410,1.28159122,1950.7,1950.4,0.001]
[1770947039915,2.2622854,1950.7,1950.4,0.001]
[1770947040610,0.92192181,1950.6,1950.4,0.001]
[1770947040817,5.12597658,1950.9,1950.4,0.001]
[1770947041000,1.262,1950.8,1950.4,0.001]
[1770947041381,2.18392181,1950.8,1950.4,0.001]
[1770947041995,0.92192181,1950.7,1950.4,0.001]
[1770947042396,2.54358147,1950.8,1950.4,0.001]
[1770947042688,2.54358147,1950.8,1950.5,0.001]
[1770947043082,3.46550328,1950.8,1950.5,0.001]
[1770947043629,0.92192181,1950.7,1950.3,0.001]
[1770947044497,1.28165692,1950.6,1950.3,0.001]
[1770947045198,2.20357873,1950.6,1950.3,0.001]
[1770947045988,0.92192181,1950.5,1950.3,0.001]
[1770947046625,2.20371016,1950.4,1950.1,0.001]
[1770947050275,7.75228601,1950.7,1950.1,0.001]
[1770947050523,3.47955283,1950.7,1950.1,0.001]
[1770947050821,0.92192181,1950.6,1950.1,0.001]
[1770947051120,2.20361567,1950.6,1950.1,0.001]
[1770947053827,2.5576153,1950.7,1950.1,0.001]
[1770947054396,3.47953711,1950.7,1950.1,0.001]
[1770947054916,10.30990131,1950.7,1950.1,0.001]
[1770947055107,0.92192181,1950.6,1950.2,0.001]
[1770947055487,0.92392181,1950.6,1950.2,0.001]
[1770947055924,1.28172263,1950.5,1950.2,0.001]
[1770947056323,2.20364444,1950.5,1950.2,0.001]
[1770947057914,7.75228601,1950.3,1950.0,0.001]
[1770947058225,0.92192181,1950.3,1950.0,0.001]
[1770947059712,1.2819198,1950.2,1950.0,0.001]
[1770947061836,0.92192181,1950.2,1949.8,0.001]
[1770947062301,2.21392181,1950.1,1949.8,0.001]
[1770947063735,3.49596544,1950.1,1949.8,0.001]
[1770947064047,1.294,1950.3,1949.8,0.001]
[1770947065102,1.294,1950.3,1949.8,0.96238831]
[1770947066224,1.294,1950.3,1949.8,2.24454235]
[1770947066536,1.294,1950.3,1949.8,0.96238831]
[1770947066711,2.57585717,1950.3,1949.8,0.001]
[1770947067619,3.49777898,1950.3,1949.8,0.001]
[1770947067823,0.92192181,1950.2,1949.9,0.001]
[1770947068046,0.92392181,1950.2,1949.9,0.001]
[1770947068245,0.92192181,1950.1,1949.9,0.001]
[1770947069735,0.92192181,1950.1,1949.7,0.001]
[1770947070250,2.20396597,1950.1,1949.7,0.001]
[1770947071614,1.28397199,1950.2,1949.7,0.001]
[1770947071818,1.304,1950.2,1949.7,0.001]
[1770947072132,1.304,1950.2,1949.7,0.97593668]
[1770947072439,1.304,1950.2,1949.8,1.28218278]
[1770947072644,1.304,1950.2,1949.7,2.25813283]
[1770947075248,0.002,1950.2,1949.8,0.9444175]
[1770947075818,0.002,1950.2,1949.7,1.28319615]
[1770947079951,0.002,1950.2,1949.8,0.001]
[1770947080151,0.002,1950.1,1949.8,0.001]
[1770947084855,6.83413388,1950.1,1949.7,0.001]
[1770947085033,0.002,1950.1,1949.7,0.001]
[1770947085233,0.002,1950.1,1949.7,0.9454175]
[1770947086431,0.002,1950.3,1949.8,0.9444175]
[1770947086633,0.002,1950.3,1949.9,2.22653453]
[1770947086841,0.002,1950.3,1949.8,1.28216896]
[1770947087156,0.97741006,1950.3,1949.7,0.001]
[1770947087350,0.97741006,1950.3,1949.7,1.347]
[1770947087351,0.97541006,1950.2,1949.7,1.347]
[1770947088668,1.28198553,1950.1,1949.7,1.347]
[1770947089041,1.28198553,1950.1,1949.7,0.001]
[1770947090041,0.97541006,1950.2,1949.7,0.001]
[1770947090787,0.97541006,1950.1,1949.7,0.001]
[1770947092475,0.97541006,1950.0,1949.7,0.001]
[1770947092662,0.97541006,1950.0,1949.8,0.001]
[1770947092836,2.25746615,1950.0,1949.8,0.001]
[1770947094052,0.97541006,1949.9,1949.8,0.001]
[1770947094771,7.80954394,1950.1,1949.8,0.001]
[1770947094941,0.002,1950.1,1949.8,0.001]
[1770947097075,0.002,1950.1,1949.8,0.9454175]
[1770947097277,0.97741006,1950.1,1949.8,0.001]
[1770947097480,0.97541006,1949.9,1949.3,0.001]
[1770947097647,6.83213388,1949.4,1949.0,0.001]
[1770947098352,7.80754394,1949.4,1949.0,0.001]
[1770947098566,0.97541006,1949.4,1949.0,0.001]
[1770947099483,9.0900063,1949.4,1949.0,0.001]
[1770947099641,7.80754394,1949.4,1949.0,0.001]
[1770947100275,0.97541006,1949.4,1949.0,0.001]
[1770947100474,0.96481453,1949.8,1949.0,0.92813299]
[1770947100651,1.28211964,1949.9,1949.1,1.341]
[1770947100857,1.28211964,1949.9,1949.1,2.26813299]
[1770947101158,0.96481453,1949.8,1949.1,2.26813299]
[1770947101364,2.24699821,1949.8,1949.2,1.28257746]
[1770947101546,2.24699821,1949.8,1949.1,2.26813299]
[1770947101547,2.24700971,1949.8,1949.1,3.55072377]
[1770947102156,0.96481453,1949.6,1949.0,0.001]
[1770947102353,0.96481453,1949.6,1949.0,1.342]
[1770947102758,0.96481453,1949.6,1949.0,0.001]
[1770947103150,8.14913388,1949.7,1949.0,1.28370219]
[1770947103468,1.28231432,1949.6,1949.0,1.28370219]
[1770947103848,2.24712885,1949.6,1949.0,0.001]
[1770947104669,3.56689264,1950.0,1949.2,0.92713299]
[1770947104871,2.28481453,1950.0,1949.2,0.92713299]
[1770947105184,0.002,1950.1,1949.3,0.92713299]
[1770947105407,0.002,1950.1,1949.5,0.92713299]
[1770947108881,0.96681453,1950.1,1949.3,2.20958474]
[1770947109086,0.96681453,1950.1,1949.3,1.28245175]
[1770947109286,0.96681453,1950.1,1949.3,2.20958474]
[1770947110588,0.96681453,1950.1,1949.3,0.92713299]
[1770947110793,0.96681453,1950.1,1949.2,1.34]
[1770947110963,2.24686581,1950.0,1949.2,2.62257169]
[1770947111788,0.96481453,1949.9,1949.2,2.62257169]
[1770947112288,0.96481453,1949.9,1949.2,1.34]
[1770947113386,0.96481453,1949.7,1949.2,1.34]
[1770947114486,2.28181453,1950.0,1949.2,3.54970021]
[1770947114694,3.56390704,1950.0,1949.2,3.54970021]
[1770947115208,0.96481453,1949.9,1949.2,1.34]
[1770947115413,2.24699731,1949.8,1949.2,1.34]
[1770947116598,2.24699731,1949.8,1949.3,0.001]
[1770947118282,2.60108677,1950.0,1949.3,0.001]
[1770947118483,1.319,1949.9,1949.3,0.001]
[1770947119569,2.6011706,1949.9,1949.3,0.001]
[1770947120908,3.56598513,1949.9,1949.3,0.001]
[1770947122002,0.96481453,1949.8,1949.3,0.001]
[1770947128086,2.24700319,1949.8,1949.3,0.001]
[1770947129019,0.96481453,1949.8,1949.3,0.001]
[1770947129316,0.96481453,1949.6,1949.3,0.001]
[1770947129613,0.96481453,1949.8,1949.4,0.001]
[1770947130305,2.24699741,1949.8,1949.4,0.001]
[1770947131318,0.96481453,1949.8,1949.4,0.001]
[1770947131490,2.24700456,1949.8,1949.4,0.001]
[1770947134596,1.322,1950.0,1949.5,0.93992223]
[1770947134597,0.002,1950.0,1949.5,0.93992223]
[1770947136022,0.002,1950.0,1949.6,1.28231432]
[1770947136510,0.002,1950.0,1949.6,2.22223655]
[1770947141027,0.002,1950.0,1949.6,1.28231432]
[1770947142225,0.002,1949.9,1949.6,1.28231432]
[1770947143440,0.920029,1949.8,1949.4,0.001]
[1770947144012,0.920029,1949.8,1949.4,1.28344161]
[1770947146801,0.002,1950.2,1949.4,1.28344161]
[1770947146802,4.61656076,1950.9,1949.8,0.920029]
[1770947147009,0.002,1951.6,1950.8,0.93992223]
[1770947147358,4.63056076,1951.5,1950.9,3.36574702]
[1770947147559,5.93054844,1951.4,1951.0,2.44783309]
[1770947147698,4.62856076,1951.4,1951.1,1.08792582]
[1770947147892,4.62856076,1951.4,1951.2,1.08795706]
[1770947148131,0.922029,1951.9,1951.1,0.93992223]
[1770947148132,0.002,1951.9,1951.1,0.93992223]
[1770947148332,0.002,1951.9,1951.3,0.93992223]
[1770947148535,0.002,1951.9,1951.3,2.28692223]
[1770947148808,0.002,1951.9,1951.4,1.28113149]
[1770947149212,0.002,1951.9,1951.4,2.22105372]
[1770947149407,0.002,1951.9,1951.5,0.93992223]
[1770947149726,0.002,1951.9,1951.4,1.28113149]
[1770947151235,0.002,1951.9,1951.4,2.22105372]
[1770947152503,0.002,1951.9,1951.5,0.93992223]
[1770947152902,0.002,1951.9,1951.6,1.2810002]
[1770947155416,0.002,1951.8,1951.6,1.2810002]
[1770947156015,0.002,1951.8,1951.6,2.22092243]
[1770947156617,0.002,1952.2,1951.7,0.93992223]
[1770947156826,0.002,1952.2,1951.8,1.28086894]
[1770947157023,1e-08,1952.5,1951.8,1.28086894]
[1770947157221,0.131299,1952.7,1951.8,1.28086894]
[1770947157222,1e-08,1952.7,1952.0,0.93992223]
[1770947158438,0.920029,1953.4,1952.1,0.93992223]
[1770947158637,0.920029,1953.2,1951.9,2.30392223]
[1770947159031,0.920029,1953.0,1951.9,1.28075999]
[1770947159343,0.920029,1952.8,1951.9,1.28075999]
[1770947160225,2.256,1952.9,1952.0,0.93992223]
[1770947160428,1.75523077,1952.9,1952.0,0.93992223]
[1770947160809,0.920029,1953.0,1951.9,1.28075999]
[1770947161037,0.94291919,1952.8,1951.8,6.11356461]
[1770947162231,0.94291919,1952.6,1951.6,1.2810002]
[1770947162431,0.94291919,1952.6,1951.5,2.20601748]
[1770947163256,0.94291919,1952.4,1951.5,2.20601748]
[1770947163960,1.28040973,1952.5,1951.5,0.001]
[1770947163961,0.94291919,1952.2,1951.5,0.001]
[1770947164131,0.94291919,1952.1,1951.5,0.001]
[1770947165256,0.94291919,1951.9,1951.5,0.001]
[1770947167442,0.94291919,1951.8,1951.5,0.001]
[1770947167644,0.94491919,1951.8,1950.9,1.28142284]
[1770947168029,0.94491919,1951.8,1950.8,2.20548408]
[1770947169478,0.94291919,1951.6,1950.6,0.001]
[1770947169953,0.94291919,1951.6,1950.6,1.28264685]
[1770947170131,0.94291919,1951.4,1950.6,1.28264685]
[1770947170453,0.94291919,1951.3,1950.6,0.001]
[1770947171929,0.94291919,1951.1,1950.6,0.001]
[1770947172557,30.0,1951.0,1950.6,0.001]
[1770947172861,0.94291919,1950.8,1949.7,1.28221333]
[1770947173065,0.94291919,1950.6,1949.7,1.28221333]
[1770947173657,0.94291919,1950.6,1949.5,2.64223738]
[1770947173861,0.94291919,1950.2,1949.4,1.28339415]
[1770947174062,2.27791919,1950.2,1949.4,1.28339415]
[1770947174432,0.94291919,1950.1,1949.4,0.001]
[1770947175043,1.335,1950.2,1949.4,0.001]
[1770947175044,1.334,1950.2,1949.5,1.08217573]
[1770947175279,1.334,1950.2,1949.4,0.99116127]
[1770947175562,1.334,1950.2,1949.5,1.08268453]
[1770947175867,1.334,1950.2,1949.5,1.28238009]
[1770947176967,3.55775115,1950.4,1949.5,2.27254136]
[1770947177127,3.55775115,1950.4,1949.5,1.28238009]
[1770947178029,1.333,1950.4,1949.6,0.99016127]
[1770947178226,0.94291919,1950.6,1949.6,0.99016127]
[1770947178451,1.332,1950.6,1949.6,0.99016127]
[1770947179370,5.12592704,1950.9,1949.6,0.99016127]
[1770947179371,9.80867095,1951.5,1949.6,0.99016127]
[1770947179670,0.002,1951.8,1950.5,0.99016127]
[1770947179964,1.28287354,1951.8,1950.8,1.28152552]
[1770947180155,2.22579273,1951.8,1950.8,1.28152552]
[1770947180351,0.94291919,1951.7,1950.7,1.28155079]
[1770947180569,0.94291919,1951.6,1950.7,1.28155079]
[1770947181136,1.339,1951.6,1950.7,2.27171206]
[1770947181558,0.94491919,1951.8,1950.7,2.27171206]
[1770947181736,1.34,1951.8,1950.9,0.99016127]
[1770947182365,2.62089302,1951.8,1951.0,1.28139415]
[1770947182670,1.34,1951.8,1951.0,1.28139415]
[1770947183166,3.56379829,1951.8,1951.0,1.28139415]
[1770947183571,1.34,1951.8,1951.0,1.28139415]